[Event "*** Titled Tuesday Blitz"]
[Site "Chess.com"]
[Date "2020.12.01"]
[Round "4"]
[White "MarcLonoff"]
[Black "Dreamer_01"]
[Result "1/2-1/2"]
[WhiteElo "2187"]
[BlackElo "2370"]
[TimeControl "180+1"]
[EndTime "10:35:51 PST"]
[Termination "Game drawn by repetition"]

1. c4 {[%clk 0:03:00.9]} 1... c6 {[%clk 0:02:58.7]} 2. e4 {[%clk 0:02:59.5]}
2... g6 {[%clk 0:02:56.2]} 3. Nc3 {[%clk 0:02:55.1]} 3... Bg7 {[%clk 0:02:56]}
4. d3 {[%clk 0:02:55]} 4... e5 {[%clk 0:02:54.2]} 5. g3 {[%clk 0:02:54.5]} 5...
Ne7 {[%clk 0:02:53.9]} 6. Bg2 {[%clk 0:02:54.1]} 6... O-O {[%clk 0:02:53.8]} 7.
Be3 {[%clk 0:02:50.6]} 7... d6 {[%clk 0:02:49.2]} 8. Nge2 {[%clk 0:02:48.4]}
8... c5 {[%clk 0:02:48.1]} 9. Qd2 {[%clk 0:02:42.8]} 9... Nbc6 {[%clk
0:02:47.2]} 10. Bh6 {[%clk 0:02:37]} 10... Nd4 {[%clk 0:02:46.5]} 11. Nxd4
{[%clk 0:02:35.8]} 11... cxd4 {[%clk 0:02:44.8]} 12. Ne2 {[%clk 0:02:34]} 12...
Bxh6 {[%clk 0:02:42.6]} 13. Qxh6 {[%clk 0:02:32.9]} 13... Qa5+ {[%clk
0:02:42.4]} 14. Kf1 {[%clk 0:02:15.2]} 14... f5 {[%clk 0:02:41.6]} 15. h4 {[%clk
0:02:09.8]} 15... fxe4 {[%clk 0:02:40.6]} 16. Bxe4 {[%clk 0:02:07.8]} 16... d5
{[%clk 0:02:19.4]} 17. cxd5 {[%clk 0:01:55.8]} 17... Nf5 {[%clk 0:02:17.6]} 18.
Qg5 {[%clk 0:01:53]} 18... Ne3+ {[%clk 0:02:04.3]} 19. Kg1 {[%clk 0:01:52]}
19... Qd2 {[%clk 0:02:04.3]} 20. Bxg6 {[%clk 0:01:37.6]} 20... hxg6 {[%clk
0:01:38.9]} 21. Qxg6+ {[%clk 0:01:36.4]} 21... Kh8 {[%clk 0:01:39.3]} 22. Qh6+
{[%clk 0:01:27.7]} 22... Kg8 {[%clk 0:01:36.9]} 23. Qg6+ {[%clk 0:01:26.7]}
23... Kh8 {[%clk 0:01:37]} 24. Qh5+ {[%clk 0:01:21.5]} 24... Kg7 {[%clk
0:01:32.7]} 25. Qg5+ {[%clk 0:01:20.5]} 25... Kh7 {[%clk 0:01:21.7]} 26. Qh5+
{[%clk 0:01:18.1]} 26... Kg8 {[%clk 0:01:19.6]} 27. Qg6+ {[%clk 0:01:17.1]}
1/2-1/2

[Event "*** Titled Tuesday Blitz"]
[Site "Chess.com"]
[Date "2020.12.01"]
[Round "4"]
[White "champ2005"]
[Black "r31415"]
[Result "1-0"]
[WhiteElo "3004"]
[BlackElo "2478"]
[TimeControl "180+1"]
[EndTime "10:35:56 PST"]
[Termination "champ2005 won by resignation"]

1. c4 {[%clk 0:03:00.9]} 1... Nf6 {[%clk 0:02:53.6]} 2. Nc3 {[%clk 0:03:01.2]}
2... e5 {[%clk 0:02:47.1]} 3. g3 {[%clk 0:03:00.9]} 3... d5 {[%clk 0:02:36.6]}
4. cxd5 {[%clk 0:03:01.8]} 4... Nxd5 {[%clk 0:02:37.1]} 5. Bg2 {[%clk
0:03:02.2]} 5... Nb6 {[%clk 0:02:37.3]} 6. Nf3 {[%clk 0:03:02.2]} 6... Nc6
{[%clk 0:02:37.4]} 7. O-O {[%clk 0:03:02.8]} 7... Be7 {[%clk 0:02:36.2]} 8. d3
{[%clk 0:03:03.4]} 8... Be6 {[%clk 0:02:35.4]} 9. a3 {[%clk 0:03:04.3]} 9... a5
{[%clk 0:02:34.7]} 10. b3 {[%clk 0:03:04.9]} 10... Nd4 {[%clk 0:02:21.3]} 11.
Nd2 {[%clk 0:03:03.8]} 11... Nd5 {[%clk 0:02:16.3]} 12. Bb2 {[%clk 0:03:01]}
12... O-O {[%clk 0:02:11.3]} 13. e3 {[%clk 0:02:56.3]} 13... Nc6 {[%clk
0:02:03.4]} 14. Qe2 {[%clk 0:02:51.2]} 14... Qd7 {[%clk 0:01:55.1]} 15. Rfd1
{[%clk 0:02:48.6]} 15... Rfd8 {[%clk 0:01:53.7]} 16. Rac1 {[%clk 0:02:32.2]}
16... f6 {[%clk 0:01:49.1]} 17. Nce4 {[%clk 0:02:29.9]} 17... b6 {[%clk
0:01:21]} 18. Nf3 {[%clk 0:02:30]} 18... Na7 {[%clk 0:01:17.5]} 19. d4 {[%clk
0:02:28.2]} 19... exd4 {[%clk 0:01:12.3]} 20. Nxd4 {[%clk 0:02:29.1]} 20... Bf7
{[%clk 0:01:08.8]} 21. Nc3 {[%clk 0:02:19.6]} 21... c6 {[%clk 0:01:00.3]} 22.
Nxc6 {[%clk 0:02:14]} 22... Nxc6 {[%clk 0:00:51.9]} 23. Nxd5 {[%clk 0:02:13.2]}
23... Kf8 {[%clk 0:00:21.6]} 24. Nxe7 {[%clk 0:02:03.8]} 1-0

[Event "*** Titled Tuesday Blitz"]
[Site "Chess.com"]
[Date "2020.12.01"]
[Round "4"]
[White "bazar-wokzal"]
[Black "Smile2005"]
[Result "1-0"]
[WhiteElo "2534"]
[BlackElo "2317"]
[TimeControl "180+1"]
[EndTime "10:35:56 PST"]
[Termination "bazar-wokzal won by resignation"]

1. e4 {[%clk 0:03:00.9]} 1... d5 {[%clk 0:02:55.8]} 2. exd5 {[%clk 0:03:00.9]}
2... Nf6 {[%clk 0:02:56.4]} 3. Bb5+ {[%clk 0:02:59]} 3... Bd7 {[%clk 0:02:56.2]}
4. Bc4 {[%clk 0:02:59.4]} 4... Bg4 {[%clk 0:02:55.6]} 5. f3 {[%clk 0:02:59.4]}
5... Bc8 {[%clk 0:02:56.3]} 6. Nc3 {[%clk 0:02:59.7]} 6... Nbd7 {[%clk
0:02:56.9]} 7. Qe2 {[%clk 0:03:00.3]} 7... Nb6 {[%clk 0:02:57.5]} 8. Qd3 {[%clk
0:03:00.9]} 8... g6 {[%clk 0:02:57.6]} 9. Bb3 {[%clk 0:03:00.6]} 9... Bf5 {[%clk
0:02:57.3]} 10. Qb5+ {[%clk 0:03:00.4]} 10... Bd7 {[%clk 0:02:53.1]} 11. Qa5
{[%clk 0:03:00.1]} 11... Bg7 {[%clk 0:02:52.2]} 12. Nge2 {[%clk 0:02:59.7]}
12... O-O {[%clk 0:02:51.8]} 13. d3 {[%clk 0:02:59.5]} 13... Bf5 {[%clk
0:02:41.8]} 14. g4 {[%clk 0:02:55.3]} 14... Bc8 {[%clk 0:02:39.9]} 15. h4 {[%clk
0:02:55.2]} 15... Qd7 {[%clk 0:02:36.7]} 16. h5 {[%clk 0:02:54.6]} 16... Rd8
{[%clk 0:02:35.9]} 17. hxg6 {[%clk 0:02:53.2]} 17... hxg6 {[%clk 0:02:35.8]} 18.
Nf4 {[%clk 0:02:48.6]} 18... Qd6 {[%clk 0:02:19.7]} 19. Bd2 {[%clk 0:02:46.9]}
19... Qe5+ {[%clk 0:02:19.1]} 20. Kf2 {[%clk 0:02:14.4]} 20... Bxg4 {[%clk
0:02:12.1]} 21. fxg4 {[%clk 0:02:00.1]} 21... Nxg4+ {[%clk 0:02:11.6]} 22. Kf3
{[%clk 0:01:57.6]} 22... Qf5 {[%clk 0:02:05.7]} 23. Ne4 {[%clk 0:01:39.3]} 23...
g5 {[%clk 0:01:50.5]} 24. Rag1 {[%clk 0:01:31.6]} 24... Ne5+ {[%clk 0:01:49.3]}
25. Ke2 {[%clk 0:01:31]} 25... gxf4 {[%clk 0:01:49.2]} 26. Rg5 {[%clk
0:01:26.1]} 26... f3+ {[%clk 0:01:44.1]} 27. Kd1 {[%clk 0:01:21.6]} 27... Qd7
{[%clk 0:01:39.9]} 28. d6 {[%clk 0:01:16.3]} 28... cxd6 {[%clk 0:01:36.7]} 29.
Rhg1 {[%clk 0:01:14.8]} 29... Ng6 {[%clk 0:01:34.8]} 30. Rxg6 {[%clk 0:01:12.3]}
1-0

[Event "*** Titled Tuesday Blitz"]
[Site "Chess.com"]
[Date "2020.12.01"]
[Round "4"]
[White "Rsnr"]
[Black "Duhless"]
[Result "0-1"]
[WhiteElo "2775"]
[BlackElo "3000"]
[TimeControl "180+1"]
[EndTime "10:36:01 PST"]
[Termination "Duhless won by resignation"]

1. d4 {[%clk 0:03:00.9]} 1... Nf6 {[%clk 0:02:59.2]} 2. c4 {[%clk 0:03:01.3]}
2... c5 {[%clk 0:02:58.8]} 3. d5 {[%clk 0:03:01.5]} 3... e6 {[%clk 0:02:58.9]}
4. Nc3 {[%clk 0:03:01.5]} 4... exd5 {[%clk 0:02:59.4]} 5. cxd5 {[%clk
0:03:02.4]} 5... d6 {[%clk 0:02:59.9]} 6. Nf3 {[%clk 0:03:02.9]} 6... g6 {[%clk
0:03:00.3]} 7. Bf4 {[%clk 0:03:03.2]} 7... Bg7 {[%clk 0:02:59.4]} 8. Qa4+ {[%clk
0:03:03.2]} 8... Bd7 {[%clk 0:02:59.2]} 9. Qb3 {[%clk 0:03:03.5]} 9... O-O
{[%clk 0:02:59.2]} 10. Bxd6 {[%clk 0:03:00.9]} 10... Ba4 {[%clk 0:02:58.3]} 11.
Qxa4 {[%clk 0:03:00]} 11... Qxd6 {[%clk 0:02:57.8]} 12. e4 {[%clk 0:02:27.6]}
12... Nbd7 {[%clk 0:02:57.1]} 13. Be2 {[%clk 0:02:20.5]} 13... a6 {[%clk
0:02:56.6]} 14. Qc2 {[%clk 0:02:12.5]} 14... b5 {[%clk 0:02:53.9]} 15. O-O
{[%clk 0:02:12.8]} 15... Rfe8 {[%clk 0:02:53.4]} 16. Nd2 {[%clk 0:01:49.9]}
16... Bh6 {[%clk 0:02:52.2]} 17. f3 {[%clk 0:01:30.7]} 17... Bf4 {[%clk
0:02:51.2]} 18. h3 {[%clk 0:00:55.1]} 18... Be3+ {[%clk 0:02:43.6]} 19. Kh1
{[%clk 0:00:55.4]} 19... Nh5 {[%clk 0:02:43.1]} 20. f4 {[%clk 0:00:51.3]} 20...
Ng3+ {[%clk 0:02:39.6]} 21. Kh2 {[%clk 0:00:51.6]} 21... Bxf4 {[%clk 0:02:38]}
22. Kg1 {[%clk 0:00:31.8]} 22... Be3+ {[%clk 0:02:36]} 23. Rf2 {[%clk
0:00:32.4]} 23... Qf4 {[%clk 0:02:28.7]} 24. Nf3 {[%clk 0:00:29.3]} 24... Nf6
{[%clk 0:02:16]} 0-1

[Event "*** Titled Tuesday Blitz"]
[Site "Chess.com"]
[Date "2020.12.01"]
[Round "4"]
[White "Andreikka"]
[Black "Susal_De_Silva"]
[Result "1-0"]
[WhiteElo "2880"]
[BlackElo "2647"]
[TimeControl "180+1"]
[EndTime "10:36:10 PST"]
[Termination "Andreikka won by resignation"]

1. d4 {[%clk 0:03:00.9]} 1... Nf6 {[%clk 0:02:59.8]} 2. c4 {[%clk 0:03:00.7]}
2... e6 {[%clk 0:03:00.2]} 3. Nc3 {[%clk 0:03:00.5]} 3... Bb4 {[%clk 0:03:00.5]}
4. Qc2 {[%clk 0:03:00.2]} 4... d5 {[%clk 0:02:59.7]} 5. cxd5 {[%clk 0:03:00.1]}
5... exd5 {[%clk 0:02:59.6]} 6. Bg5 {[%clk 0:03:00.4]} 6... h6 {[%clk
0:02:58.1]} 7. Bh4 {[%clk 0:03:00.5]} 7... O-O {[%clk 0:02:57.4]} 8. e3 {[%clk
0:02:59.8]} 8... b6 {[%clk 0:02:57.9]} 9. Nf3 {[%clk 0:02:49.8]} 9... Bb7 {[%clk
0:02:57]} 10. Bd3 {[%clk 0:02:49.1]} 10... g5 {[%clk 0:02:53.2]} 11. Bg3 {[%clk
0:02:46.9]} 11... Ne4 {[%clk 0:02:53.3]} 12. O-O {[%clk 0:02:45]} 12... Bxc3
{[%clk 0:02:51.2]} 13. bxc3 {[%clk 0:02:44.5]} 13... f5 {[%clk 0:02:50.5]} 14.
Ne5 {[%clk 0:02:34.3]} 14... Nd7 {[%clk 0:02:47.7]} 15. Nxd7 {[%clk 0:02:32.1]}
15... Qxd7 {[%clk 0:02:47.8]} 16. Be5 {[%clk 0:02:32.5]} 16... c5 {[%clk
0:02:30.1]} 17. f3 {[%clk 0:02:26.3]} 17... c4 {[%clk 0:02:28.6]} 18. Be2 {[%clk
0:02:23.2]} 18... Nd6 {[%clk 0:02:27.1]} 19. Bd1 {[%clk 0:02:16.1]} 19... b5
{[%clk 0:02:23.8]} 20. Qd2 {[%clk 0:02:15.9]} 20... Nf7 {[%clk 0:02:19.2]} 21.
Bg3 {[%clk 0:02:08.1]} 21... Bc6 {[%clk 0:02:19]} 22. Bc2 {[%clk 0:02:07.1]}
22... a5 {[%clk 0:02:11.2]} 23. a3 {[%clk 0:02:06.2]} 23... Nh8 {[%clk
0:02:06.9]} 24. a4 {[%clk 0:01:38.4]} 24... bxa4 {[%clk 0:02:04.9]} 25. Rfb1
{[%clk 0:01:21.4]} 25... Ra7 {[%clk 0:02:04.6]} 26. Rb6 {[%clk 0:01:19.4]} 26...
Rb7 {[%clk 0:02:02.9]} 27. Rxb7 {[%clk 0:01:13.1]} 27... Qxb7 {[%clk 0:02:03.8]}
28. Bd6 {[%clk 0:01:12.9]} 28... Rd8 {[%clk 0:01:55.1]} 29. Rb1 {[%clk
0:01:10.8]} 29... Qa8 {[%clk 0:01:36.1]} 30. Bc7 {[%clk 0:01:08.4]} 30... Rd7
{[%clk 0:01:33.9]} 31. Rb8+ {[%clk 0:01:07.8]} 31... Qxb8 {[%clk 0:01:32.9]} 32.
Bxb8 {[%clk 0:01:08.7]} 32... Rb7 {[%clk 0:01:33.8]} 33. Bd6 {[%clk 0:01:07.5]}
33... Rb2 {[%clk 0:01:33.5]} 34. Qc1 {[%clk 0:01:07.5]} 1-0

[Event "*** Titled Tuesday Blitz"]
[Site "Chess.com"]
[Date "2020.12.01"]
[Round "4"]
[White "LiamVrolijk"]
[Black "Kotofeyca"]
[Result "1-0"]
[WhiteElo "2831"]
[BlackElo "2475"]
[TimeControl "180+1"]
[EndTime "10:36:15 PST"]
[Termination "LiamVrolijk won by checkmate"]

1. c4 {[%clk 0:02:55.9]} 1... c6 {[%clk 0:03:00.1]} 2. d4 {[%clk 0:02:54.9]}
2... d5 {[%clk 0:03:01]} 3. cxd5 {[%clk 0:02:55.3]} 3... cxd5 {[%clk 0:03:01.9]}
4. Bg5 {[%clk 0:02:55.4]} 4... Nf6 {[%clk 0:03:02.6]} 5. Bxf6 {[%clk 0:02:55.5]}
5... gxf6 {[%clk 0:03:02.5]} 6. Nc3 {[%clk 0:02:55]} 6... Nc6 {[%clk 0:03:01.7]}
7. e3 {[%clk 0:02:54.6]} 7... Bg7 {[%clk 0:02:37.4]} 8. Bd3 {[%clk 0:02:52.7]}
8... e6 {[%clk 0:02:34.5]} 9. Qg4 {[%clk 0:02:48.8]} 9... O-O {[%clk 0:02:16.9]}
10. Nge2 {[%clk 0:02:41.4]} 10... f5 {[%clk 0:02:15.5]} 11. Qh5 {[%clk
0:02:40.3]} 11... Ne7 {[%clk 0:02:05.4]} 12. g4 {[%clk 0:02:35.3]} 12... Kh8
{[%clk 0:01:52.7]} 13. gxf5 {[%clk 0:02:32.1]} 13... Nxf5 {[%clk 0:01:50.9]} 14.
Bxf5 {[%clk 0:02:31.4]} 14... exf5 {[%clk 0:01:51.8]} 15. Nf4 {[%clk 0:02:32.3]}
15... Be6 {[%clk 0:01:48.6]} 16. Rg1 {[%clk 0:02:20.5]} 16... Bf6 {[%clk
0:01:39.4]} 17. Qh6 {[%clk 0:02:12.5]} 17... Rg8 {[%clk 0:01:16.4]} 18. Rxg8+
{[%clk 0:02:11.3]} 18... Kxg8 {[%clk 0:01:17.3]} 19. Ke2 {[%clk 0:02:02.3]}
19... Kh8 {[%clk 0:01:05.1]} 20. Nh5 {[%clk 0:01:57.5]} 20... Bxd4 {[%clk
0:00:11.2]} 21. exd4 {[%clk 0:01:56.5]} 21... Qf8 {[%clk 0:00:10.4]} 22. Qf6+
{[%clk 0:01:55.7]} 22... Qg7 {[%clk 0:00:10.2]} 23. Qxg7# {[%clk 0:01:55.6]} 1-0

[Event "*** Titled Tuesday Blitz"]
[Site "Chess.com"]
[Date "2020.12.01"]
[Round "4"]
[White "Ze-Pequeno"]
[Black "IMVoja"]
[Result "0-1"]
[WhiteElo "2187"]
[BlackElo "2422"]
[TimeControl "180+1"]
[EndTime "10:36:24 PST"]
[Termination "IMVoja won by resignation"]

1. e4 {[%clk 0:03:00.2]} 1... e6 {[%clk 0:02:59.4]} 2. d4 {[%clk 0:02:58.2]}
2... d5 {[%clk 0:02:59.5]} 3. Nc3 {[%clk 0:02:59.1]} 3... Bb4 {[%clk 0:02:58.6]}
4. e5 {[%clk 0:02:58.8]} 4... Qd7 {[%clk 0:02:58.8]} 5. a3 {[%clk 0:02:59.2]}
5... Bxc3+ {[%clk 0:02:57.3]} 6. bxc3 {[%clk 0:03:00.1]} 6... b6 {[%clk
0:02:57.5]} 7. Qg4 {[%clk 0:02:59.4]} 7... f5 {[%clk 0:02:56.7]} 8. Qg3 {[%clk
0:02:58.5]} 8... Bb7 {[%clk 0:02:54.6]} 9. h4 {[%clk 0:02:50.9]} 9... Nc6 {[%clk
0:02:53]} 10. a4 {[%clk 0:02:48.8]} 10... Na5 {[%clk 0:02:49.3]} 11. Nf3 {[%clk
0:02:45]} 11... O-O-O {[%clk 0:02:48.3]} 12. h5 {[%clk 0:02:31.3]} 12... Nh6
{[%clk 0:02:36.6]} 13. Ng5 {[%clk 0:01:52.5]} 13... Kb8 {[%clk 0:02:28.2]} 14.
Bd3 {[%clk 0:01:43.3]} 14... Nc4 {[%clk 0:02:24.7]} 15. O-O {[%clk 0:01:40.4]}
15... a5 {[%clk 0:02:21.3]} 16. f3 {[%clk 0:01:20.9]} 16... Rdg8 {[%clk
0:02:13.4]} 17. Kf2 {[%clk 0:01:19.4]} 17... Nf7 {[%clk 0:02:11.1]} 18. Rh1
{[%clk 0:01:18.7]} 18... Nxg5 {[%clk 0:02:09.5]} 19. Qxg5 {[%clk 0:01:17.2]}
19... Bc6 {[%clk 0:01:53.5]} 20. h6 {[%clk 0:01:08.4]} 20... gxh6 {[%clk
0:01:44.8]} 21. Qxh6 {[%clk 0:01:08.1]} 21... Rg7 {[%clk 0:01:27.6]} 22. Rh2
{[%clk 0:01:02.2]} 22... Rhg8 {[%clk 0:01:25.5]} 23. Qf6 {[%clk 0:00:57.6]}
23... Rg6 {[%clk 0:01:20.8]} 24. Qh4 {[%clk 0:00:55.8]} 24... Qg7 {[%clk
0:01:17.2]} 25. Qh3 {[%clk 0:00:52]} 25... Rg3 {[%clk 0:01:14.2]} 0-1

[Event "*** Titled Tuesday Blitz"]
[Site "Chess.com"]
[Date "2020.12.01"]
[Round "4"]
[White "Markov_Mikhail"]
[Black "TheCavemanChesss"]
[Result "1-0"]
[WhiteElo "2711"]
[BlackElo "2482"]
[TimeControl "180+1"]
[EndTime "10:36:26 PST"]
[Termination "Markov_Mikhail won by resignation"]

1. c4 {[%clk 0:03:00.9]} 1... Nf6 {[%clk 0:02:58.3]} 2. Nf3 {[%clk 0:03:00.7]}
2... e6 {[%clk 0:02:57.7]} 3. g3 {[%clk 0:03:00.7]} 3... d5 {[%clk 0:02:58.2]}
4. Bg2 {[%clk 0:03:00.7]} 4... Be7 {[%clk 0:02:58.9]} 5. O-O {[%clk 0:03:00.9]}
5... O-O {[%clk 0:02:59.6]} 6. d4 {[%clk 0:03:01.6]} 6... dxc4 {[%clk
0:02:59.5]} 7. Nbd2 {[%clk 0:03:02.1]} 7... b5 {[%clk 0:02:53.4]} 8. a4 {[%clk
0:03:01.4]} 8... c6 {[%clk 0:02:48.1]} 9. Qc2 {[%clk 0:03:01.7]} 9... Bb7 {[%clk
0:02:46.7]} 10. b3 {[%clk 0:03:01.5]} 10... cxb3 {[%clk 0:01:46.7]} 11. Nxb3
{[%clk 0:03:02.4]} 11... Nbd7 {[%clk 0:01:47.2]} 12. Rd1 {[%clk 0:03:01.3]}
12... a5 {[%clk 0:01:11.2]} 13. e4 {[%clk 0:02:21.2]} 13... Qb6 {[%clk
0:01:07.3]} 14. Be3 {[%clk 0:02:16.3]} 14... Ng4 {[%clk 0:00:54.6]} 15. Bf4
{[%clk 0:02:16.2]} 15... c5 {[%clk 0:00:48.2]} 16. h3 {[%clk 0:01:57.6]} 16...
c4 {[%clk 0:00:41.7]} 17. hxg4 {[%clk 0:01:49.3]} 17... cxb3 {[%clk 0:00:40.8]}
18. Qxb3 {[%clk 0:01:50.2]} 18... Bxe4 {[%clk 0:00:28.1]} 19. axb5 {[%clk
0:01:46.5]} 19... Bd6 {[%clk 0:00:26.1]} 20. Ne5 {[%clk 0:01:40]} 20... Bxe5
{[%clk 0:00:19.6]} 21. Bxe4 {[%clk 0:01:35.9]} 21... Bxf4 {[%clk 0:00:19.6]} 22.
Bxa8 {[%clk 0:01:35.6]} 22... Bxg3 {[%clk 0:00:18.9]} 23. Bc6 {[%clk 0:01:35]}
23... Ra8 {[%clk 0:00:19.8]} 24. Bxa8 {[%clk 0:01:33.8]} 1-0

[Event "*** Titled Tuesday Blitz"]
[Site "Chess.com"]
[Date "2020.12.01"]
[Round "4"]
[White "ENajer77"]
[Black "PlotnikovPavel"]
[Result "1-0"]
[WhiteElo "2675"]
[BlackElo "2471"]
[TimeControl "180+1"]
[EndTime "10:36:27 PST"]
[Termination "ENajer77 won by checkmate"]

1. d4 {[%clk 0:03:00.7]} 1... Nf6 {[%clk 0:02:58.9]} 2. c4 {[%clk 0:02:59.8]}
2... g6 {[%clk 0:02:58.4]} 3. Nc3 {[%clk 0:02:58.8]} 3... Bg7 {[%clk 0:02:57.1]}
4. e4 {[%clk 0:02:58.3]} 4... O-O {[%clk 0:02:56.9]} 5. Be2 {[%clk 0:02:58.8]}
5... d6 {[%clk 0:02:56.1]} 6. Be3 {[%clk 0:02:59.3]} 6... e5 {[%clk 0:02:56.1]}
7. d5 {[%clk 0:02:59.5]} 7... Na6 {[%clk 0:02:55.7]} 8. g4 {[%clk 0:02:59.2]}
8... Nc5 {[%clk 0:02:54.9]} 9. f3 {[%clk 0:02:59.7]} 9... Nfd7 {[%clk
0:02:54.1]} 10. Qd2 {[%clk 0:02:47.1]} 10... Nb6 {[%clk 0:02:50.4]} 11. O-O-O
{[%clk 0:02:41]} 11... f5 {[%clk 0:02:43]} 12. gxf5 {[%clk 0:02:40.1]} 12...
gxf5 {[%clk 0:02:43.3]} 13. Kb1 {[%clk 0:02:40.5]} 13... f4 {[%clk 0:02:41.3]}
14. Bf2 {[%clk 0:02:39.5]} 14... Bd7 {[%clk 0:02:33.6]} 15. Bf1 {[%clk 0:02:36]}
15... Qf6 {[%clk 0:02:24.7]} 16. Rc1 {[%clk 0:02:30.2]} 16... Qh6 {[%clk
0:02:11.4]} 17. h4 {[%clk 0:02:28.3]} 17... Bf6 {[%clk 0:02:04.4]} 18. Qe2
{[%clk 0:02:27.6]} 18... Kh8 {[%clk 0:02:03.7]} 19. Bh3 {[%clk 0:02:27.6]} 19...
Bxh3 {[%clk 0:02:02.4]} 20. Nxh3 {[%clk 0:02:25.8]} 20... a5 {[%clk 0:01:56.8]}
21. Ng5 {[%clk 0:02:24.5]} 21... Bxg5 {[%clk 0:01:52.5]} 22. hxg5 {[%clk
0:02:24]} 22... Qg6 {[%clk 0:01:52.1]} 23. Rcg1 {[%clk 0:02:17.1]} 23... Nbd7
{[%clk 0:01:50.8]} 24. Rh6 {[%clk 0:02:15.5]} 24... Qg7 {[%clk 0:01:48.9]} 25.
Rgh1 {[%clk 0:02:16]} 25... Rf7 {[%clk 0:01:46.6]} 26. g6 {[%clk 0:02:15.3]}
26... Re7 {[%clk 0:01:19]} 27. Rxh7+ {[%clk 0:02:07.9]} 27... Qxh7 {[%clk
0:01:19.7]} 28. gxh7 {[%clk 0:02:05.6]} 28... Rxh7 {[%clk 0:01:20.3]} 29. Rxh7+
{[%clk 0:02:02.2]} 29... Kxh7 {[%clk 0:01:21.2]} 30. Nb5 {[%clk 0:02:01.8]}
30... Rg8 {[%clk 0:01:19.4]} 31. Nxc7 {[%clk 0:02:01.1]} 31... Nf6 {[%clk
0:01:13]} 32. Bxc5 {[%clk 0:02:00]} 32... dxc5 {[%clk 0:01:13.9]} 33. Ne6 {[%clk
0:01:59.5]} 33... Rg3 {[%clk 0:01:13.2]} 34. d6 {[%clk 0:01:56.9]} 34... Kg6
{[%clk 0:01:12.1]} 35. Nxc5 {[%clk 0:01:54.6]} 35... b6 {[%clk 0:01:07.8]} 36.
d7 {[%clk 0:01:50.8]} 36... Nxd7 {[%clk 0:01:07.7]} 37. Nxd7 {[%clk 0:01:48.9]}
37... Rh3 {[%clk 0:01:08.3]} 38. Nxe5+ {[%clk 0:01:48.3]} 38... Kf6 {[%clk
0:01:09.2]} 39. Ng4+ {[%clk 0:01:48.2]} 39... Ke6 {[%clk 0:01:10.1]} 40. Qd1
{[%clk 0:01:47.1]} 40... Rh1 {[%clk 0:01:11]} 41. Qxh1 {[%clk 0:01:46.2]} 41...
Kd6 {[%clk 0:01:11.9]} 42. Qh5 {[%clk 0:01:45.6]} 42... b5 {[%clk 0:01:11.8]}
43. Qd5+ {[%clk 0:01:44.7]} 43... Ke7 {[%clk 0:01:11.9]} 44. e5 {[%clk
0:01:43.8]} 44... Kf8 {[%clk 0:01:12.8]} 45. Qd7 {[%clk 0:01:43.4]} 45... Kg8
{[%clk 0:01:13]} 46. Nf6+ {[%clk 0:01:43.2]} 46... Kf8 {[%clk 0:01:13.9]} 47. e6
{[%clk 0:01:43.5]} 47... bxc4 {[%clk 0:01:12]} 48. Qf7# {[%clk 0:01:41]} 1-0

[Event "*** Titled Tuesday Blitz"]
[Site "Chess.com"]
[Date "2020.12.01"]
[Round "4"]
[White "Soltan49"]
[Black "vwnv7"]
[Result "0-1"]
[WhiteElo "2219"]
[BlackElo "2419"]
[TimeControl "180+1"]
[EndTime "10:36:33 PST"]
[Termination "vwnv7 won by checkmate"]

1. Nf3 {[%clk 0:03:00.9]} 1... d5 {[%clk 0:02:59.1]} 2. d4 {[%clk 0:02:53.8]}
2... Nf6 {[%clk 0:02:58.4]} 3. Bf4 {[%clk 0:02:52.9]} 3... c5 {[%clk 0:02:57.5]}
4. e3 {[%clk 0:02:51.3]} 4... Nc6 {[%clk 0:02:57.2]} 5. c3 {[%clk 0:02:50.6]}
5... Qb6 {[%clk 0:02:56.2]} 6. Qc1 {[%clk 0:02:39.3]} 6... Bf5 {[%clk
0:02:50.9]} 7. Nbd2 {[%clk 0:02:34.2]} 7... e6 {[%clk 0:02:50]} 8. h3 {[%clk
0:02:19.1]} 8... Rc8 {[%clk 0:02:45.7]} 9. Nh4 {[%clk 0:02:15.9]} 9... cxd4
{[%clk 0:02:06]} 10. Nxf5 {[%clk 0:02:14.7]} 10... exf5 {[%clk 0:01:52.5]} 11.
exd4 {[%clk 0:02:14.8]} 11... Nxd4 {[%clk 0:01:46.8]} 12. Be3 {[%clk 0:02:01.5]}
12... Qe6 {[%clk 0:01:46.3]} 13. cxd4 {[%clk 0:01:27.7]} 13... Rxc1+ {[%clk
0:01:45.4]} 14. Rxc1 {[%clk 0:01:27.2]} 14... f4 {[%clk 0:01:38.8]} 15. Bb5+
{[%clk 0:01:26.1]} 15... Kd8 {[%clk 0:01:35.5]} 16. Kd1 {[%clk 0:01:00.4]} 16...
fxe3 {[%clk 0:01:34.9]} 17. fxe3 {[%clk 0:01:01.3]} 17... Bb4 {[%clk 0:01:17.1]}
18. Nf3 {[%clk 0:00:35.6]} 18... a6 {[%clk 0:01:12.7]} 19. Ba4 {[%clk
0:00:34.6]} 19... Qxe3 {[%clk 0:01:09.9]} 20. a3 {[%clk 0:00:34.3]} 20... Qd3+
{[%clk 0:01:09]} 21. Nd2 {[%clk 0:00:32.9]} 21... Qxd2# {[%clk 0:01:09]} 0-1